fUST/lending_fUST_20250315
["ID","MTS","AMOUNT","RATE_DAILY","PERIOD"]
[356164808,1741980632500,-500.0,8.219e-05,2]
[356164809,1741980632509,-500.0,8.219e-05,2]
[356164810,1741980632518,-500.0,8.219e-05,2]
[356164811,1741980632528,-500.0,8.219e-05,2]
[356164812,1741980632537,-500.0,8.219e-05,2]
[356164813,1741980632546,-500.0,8.219e-05,2]
[356164814,1741980632555,-500.0,8.219e-05,2]
[356164815,1741980632564,-500.0,8.219e-05,2]
[356164816,1741980632574,-562.17,8.219e-05,2]
[356164817,1741980632583,-500.0,8.219e-05,2]
[356164818,1741980632593,-500.0,8.219e-05,2]
[356164819,1741980632602,-500.0,8.219e-05,2]
[356164821,1741980632611,-500.0,8.219e-05,2]
[356164823,1741980632620,-500.0,8.219e-05,2]
[356164825,1741980632629,-417.36339775,8.219e-05,2]
[356164827,1741980632639,-500.0,8.219e-05,2]
[356164829,1741980632648,-500.0,8.219e-05,2]
[356164832,1741980632657,-523.22,8.219e-05,2]
[356164835,1741980632667,-500.0,8.219e-05,2]
[356164838,1741980632676,-526.55,8.219e-05,2]
[356164841,1741980632686,-500.0,8.219e-05,2]
[356164843,1741980632695,-500.0,8.219e-05,2]
[356164845,1741980632704,-635.14421015,8.219e-05,2]
[356164847,1741980632713,-1035.06,8.219e-05,2]
[356164849,1741980632724,-500.0,8.219e-05,2]
[356164851,1741980632733,-513.70180223,8.219e-05,2]
[356164853,1741980632742,-500.0,8.219e-05,2]
[356164855,1741980632753,-548.74,8.219e-05,2]
[356164857,1741980632764,-512.83057655,8.219e-05,2]
[356164859,1741980632774,-500.0,8.219e-05,2]
[356164861,1741980632783,-500.0,8.219e-05,2]
[356164864,1741980632795,-500.0,8.219e-05,2]
[356164866,1741980632804,-500.0,8.219e-05,2]
[356164868,1741980632814,-500.0,8.219e-05,2]
[356164870,1741980632824,-503.63777399,8.219e-05,2]
[356164872,1741980632835,-500.0,8.219e-05,2]
[356164874,1741980632844,-500.0,8.219e-05,2]
[356164876,1741980632854,-749.96,8.219e-05,2]
[356164878,1741980632864,-522.60890009,8.219e-05,2]
[356164880,1741980632878,-6.03599919,8.219e-05,2]
[356164882,1741980632887,-295.7427111,8.219e-05,2]
[356164885,1741980632906,-204.2572889,8.219e-05,2]
[356164887,1741980632915,-500.0,8.219e-05,2]
[356164889,1741980632925,-500.0,8.219e-05,2]
[356164891,1741980632934,-500.0,8.219e-05,2]
[356164893,1741980632944,-500.0,8.219e-05,2]
[356164895,1741980632954,-500.0,8.219e-05,2]
[356164898,1741980632964,-500.0,8.219e-05,2]
[356164899,1741980632973,-500.0,8.219e-05,2]
[356164900,1741980632983,-500.0,8.219e-05,2]
[356164901,1741980632992,-500.0,8.219e-05,2]
[356164902,1741980633002,-633.02,8.219e-05,2]
[356164903,1741980633012,-500.0,8.219e-05,2]
[356164904,1741980633022,-500.0,8.219e-05,2]
[356164905,1741980633033,-500.0,8.219e-05,2]
[356164906,1741980633043,-500.0,8.219e-05,2]
[356164907,1741980633053,-500.0,8.219e-05,2]
[356164908,1741980633062,-500.0,8.219e-05,2]
[356164909,1741980633073,-500.0,8.219e-05,2]
[356164910,1741980633082,-500.0,8.219e-05,2]
[356164911,1741980633092,-500.0,8.219e-05,2]
[356164912,1741980633101,-500.0,8.219e-05,2]
[356164913,1741980633111,-500.0,8.219e-05,2]
[356164914,1741980633121,-965.5,8.219e-05,2]
[356164915,1741980633130,-500.0,8.219e-05,2]
[356164916,1741980633141,-500.0,8.219e-05,2]
[356164917,1741980633150,-500.0,8.219e-05,2]
[356164918,1741980633160,-500.0,8.219e-05,2]
[356164919,1741980633169,-500.0,8.219e-05,2]
[356164920,1741980633179,-296.89355326,8.219e-05,2]
[356164921,1741980633189,-500.0,8.219e-05,2]
[356164922,1741980633199,-500.0,8.219e-05,2]
[356164923,1741980633208,-711.0,8.219e-05,2]
[356164924,1741980633218,-500.0,8.219e-05,2]
[356164925,1741980633228,-803.33,8.219e-05,2]
[356164926,1741980633237,-500.0,8.219e-05,2]
[356164927,1741980633246,-500.0,8.219e-05,2]
[356164928,1741980633255,-575.6037553,8.219e-05,2]
[356164929,1741980633269,-500.0,8.219e-05,2]
[356164930,1741980633279,-500.0,8.219e-05,2]
[356164931,1741980633289,-500.0,8.219e-05,2]
[356164932,1741980633299,-500.0,8.219e-05,2]
[356164933,1741980633308,-500.0,8.219e-05,2]
[356164934,1741980633318,-500.0,8.219e-05,2]
[356164935,1741980633328,-500.0,8.219e-05,2]
[356164936,1741980633338,-500.0,8.219e-05,2]
[356164937,1741980633348,-500.0,8.219e-05,2]
[356164938,1741980633358,-500.0,8.219e-05,2]
[356164939,1741980633368,-500.0,8.219e-05,2]
[356164940,1741980633378,-556.22,8.219e-05,2]
[356164941,1741980633388,-568.76,8.219e-05,2]
[356164942,1741980633397,-500.0,8.219e-05,2]
[356164943,1741980633408,-500.0,8.219e-05,2]
[356164944,1741980633418,-500.0,8.219e-05,2]
[356164945,1741980633428,-500.0,8.219e-05,2]
[356164946,1741980633438,-500.0,8.219e-05,2]
[356164947,1741980633448,-500.0,8.219e-05,2]
[356164948,1741980633458,-500.0,8.219e-05,2]
[356164949,1741980633469,-610.22,8.219e-05,2]
[356164950,1741980633478,-500.0,8.219e-05,2]
[356164951,1741980633488,-500.0,8.219e-05,2]
[356164952,1741980633497,-500.0,8.219e-05,2]
[356164953,1741980633507,-1203.17,8.219e-05,2]
[356164954,1741980633516,-500.0,8.219e-05,2]
[356164955,1741980633526,-500.0,8.219e-05,2]
[356164956,1741980633536,-500.0,8.219e-05,2]
[356164957,1741980633545,-500.0,8.219e-05,2]
[356164958,1741980633555,-500.0,8.219e-05,2]
[356164959,1741980633565,-500.0,8.219e-05,2]
[356164960,1741980633575,-1082.1,8.219e-05,2]
[356164961,1741980633585,-500.0,8.219e-05,2]
[356164962,1741980633595,-500.0,8.219e-05,2]
[356164963,1741980633605,-500.0,8.219e-05,2]
[356164964,1741980633615,-500.0,8.219e-05,2]
[356164965,1741980633625,-1134.39,8.219e-05,2]
[356164966,1741980633634,-500.0,8.219e-05,2]
[356164967,1741980633644,-500.0,8.219e-05,2]
[356164968,1741980633655,-500.0,8.219e-05,2]
[356164969,1741980633664,-558.94,8.219e-05,2]
[356164970,1741980633674,-500.0,8.219e-05,2]
[356164971,1741980633684,-413.69860278,8.219e-05,2]
[356164972,1741980633693,-500.0,8.219e-05,2]
[356164973,1741980633703,-500.0,8.219e-05,2]
[356164974,1741980633712,-702.03,8.219e-05,2]
[356164975,1741980633725,-682.99,8.219e-05,2]
[356164976,1741980633734,-500.0,8.219e-05,2]
[356164977,1741980633744,-576.3,8.219e-05,2]
[356164978,1741980633757,-500.0,8.219e-05,2]
[356164979,1741980633767,-500.0,8.219e-05,2]
[356164980,1741980633776,-636.95,8.219e-05,2]
[356164981,1741980633786,-500.0,8.219e-05,2]
[356164982,1741980633798,-500.0,8.219e-05,2]
[356164983,1741980633807,-500.0,8.219e-05,2]
[356164984,1741980633817,-500.0,8.219e-05,2]
[356164985,1741980633828,-301.77871029,8.219e-05,2]
[356164986,1741980633838,-500.0,8.219e-05,2]
[356164987,1741980633848,-1084.25,8.219e-05,2]
[356164988,1741980633858,-554.2,8.219e-05,2]
[356164989,1741980633868,-500.0,8.219e-05,2]
[356164990,1741980633878,-500.0,8.219e-05,2]
[356164991,1741980633888,-500.0,8.219e-05,2]
[356164992,1741980633898,-500.0,8.219e-05,2]
[356164993,1741980633908,-500.0,8.219e-05,2]
[356164994,1741980633917,-500.0,8.219e-05,2]
[356164995,1741980633928,-19104.88,8.219e-05,2]
[356164996,1741980633938,-500.0,8.219e-05,2]
[356164997,1741980633948,-500.0,8.219e-05,2]
[356164998,1741980633958,-500.0,8.219e-05,2]
[356164999,1741980633968,-8676.97,8.219e-05,2]
[356165000,1741980633978,-646.28,8.219e-05,2]
[356165001,1741980633988,-949.83,8.219e-05,2]
[356165002,1741980633997,-1716.57,8.219e-05,2]
[356165003,1741980634007,-500.0,8.219e-05,2]
[356165004,1741980634017,-500.0,8.219e-05,2]
[356165005,1741980634027,-521.29,8.219e-05,2]
[356165006,1741980634038,-505.72571479,8.219e-05,2]
[356165007,1741980634048,-767.13,8.219e-05,2]
[356165008,1741980634059,-500.0,8.219e-05,2]
[356165009,1741980634070,-4095.87,8.219e-05,2]
[356165010,1741980634080,-500.0,8.219e-05,2]
[356165011,1741980634089,-891.34,8.219e-05,2]
[356165012,1741980634100,-500.0,8.219e-05,2]
[356165013,1741980634110,-500.0,8.219e-05,2]
[356165014,1741980634120,-500.0,8.219e-05,2]
[356165015,1741980634130,-500.0,8.219e-05,2]
[356165016,1741980634140,-605.33,8.219e-05,2]
[356165017,1741980634151,-4880.88,8.219e-05,2]
[356165018,1741980634160,-500.0,8.219e-05,2]
[356165019,1741980634170,-500.0,8.219e-05,2]
[356165020,1741980634180,-500.0,8.219e-05,2]
[356165021,1741980634190,-648.68,8.219e-05,2]
[356165022,1741980634201,-500.0,8.219e-05,2]
[356165023,1741980634211,-11699.76,8.219e-05,2]
[356165024,1741980634222,-3931.89,8.219e-05,2]
[356165025,1741980634233,-623.33,8.219e-05,2]
[356165026,1741980634243,-1257.61,8.219e-05,2]
[356165027,1741980634253,-500.0,8.219e-05,2]
[356165028,1741980634264,-500.0,8.219e-05,2]
[356165029,1741980634274,-500.0,8.219e-05,2]
[356165030,1741980634284,-1352.77,8.219e-05,2]
[356165031,1741980634294,-505.66,8.219e-05,2]
[356165032,1741980634304,-500.0,8.219e-05,2]
[356165033,1741980634313,-500.0,8.219e-05,2]
[356165034,1741980634323,-1190.63,8.219e-05,2]
[356165035,1741980634333,-500.0,8.219e-05,2]
[356165036,1741980634343,-500.0,8.219e-05,2]
[356165037,1741980634353,-500.0,8.219e-05,2]
[356165038,1741980634363,-500.0,8.219e-05,2]
[356165039,1741980634372,-1296.38,8.219e-05,2]
[356165040,1741980634382,-782.25,8.219e-05,2]
[356165041,1741980634392,-502.39,8.219e-05,2]
[356165042,1741980634402,-500.0,8.219e-05,2]
[356165043,1741980634411,-500.0,8.219e-05,2]
[356165044,1741980634421,-1017.7,8.219e-05,2]
[356165045,1741980634431,-2008.1,8.219e-05,2]
[356165046,1741980634442,-500.0,8.219e-05,2]
[356165047,1741980634451,-602.15,8.219e-05,2]
[356165048,1741980634461,-1430.67,8.219e-05,2]
[356165049,1741980634470,-583.09,8.219e-05,2]
[356165050,1741980634480,-12919.02,8.219e-05,2]
[356165051,1741980634490,-500.0,8.219e-05,2]
[356165052,1741980634499,-521.52,8.219e-05,2]
[356165053,1741980634509,-656.28,8.219e-05,2]
[356165054,1741980634519,-1496.22,8.219e-05,2]
[356165055,1741980634528,-14566.16,8.219e-05,2]
[356165056,1741980634538,-8246.34,8.219e-05,2]
[356165057,1741980634547,-1552.9,8.219e-05,2]
[356165058,1741980634558,-5262.01,8.219e-05,2]
[356165059,1741980634568,-500.0,8.219e-05,2]
[356165060,1741980634577,-500.0,8.219e-05,2]
[356165061,1741980634587,-884.74,8.219e-05,2]
[356165062,1741980634596,-3275.54,8.219e-05,2]
[356165063,1741980634606,-500.0,8.219e-05,2]
[356165064,1741980634625,-500.0,8.219e-05,2]
[356165065,1741980634636,-500.0,8.219e-05,2]
[356165066,1741980634646,-500.0,8.219e-05,2]
[356165067,1741980634656,-16816.92,8.219e-05,2]
[356165068,1741980634666,-500.0,8.219e-05,2]
[356165069,1741980634675,-500.0,8.219e-05,2]
[356165070,1741980634686,-500.0,8.219e-05,2]
[356165071,1741980634697,-500.0,8.219e-05,2]
[356165072,1741980634707,-500.0,8.219e-05,2]
[356165073,1741980634717,-534.61,8.219e-05,2]
[356165074,1741980634727,-624.08,8.219e-05,2]
[356165075,1741980634738,-631.26,8.219e-05,2]
[356165076,1741980634749,-500.0,8.219e-05,2]
[356165077,1741980634762,-500.0,8.219e-05,2]
[356165078,1741980634773,-500.0,8.219e-05,2]
[356165079,1741980634784,-500.0,8.219e-05,2]
[356165080,1741980634795,-500.0,8.219e-05,2]
[356165081,1741980634805,-500.0,8.219e-05,2]
[356165082,1741980634815,-500.0,8.219e-05,2]
[356165083,1741980634827,-500.0,8.219e-05,2]
[356165084,1741980634838,-932.38,8.219e-05,2]
[356165085,1741980634849,-500.0,8.219e-05,2]
[356165086,1741980634859,-577.06,8.219e-05,2]
[356165087,1741980634871,-500.0,8.219e-05,2]
[356165088,1741980634881,-19.62377468,8.219e-05,2]
[356165103,1741980640473,-510.07622532,8.219e-05,2]
[356165104,1741980640483,-708.76,8.219e-05,2]
[356165105,1741980640494,-500.0,8.219e-05,2]
[356165106,1741980640503,-1016.56035958,8.219e-05,2]
[356165116,1741980643266,-638.9425372,8.219e-05,2]
[356165121,1741980646357,-704.01710322,8.219e-05,2]
[356165122,1741980646367,-500.0,8.219e-05,2]
[356165123,1741980646378,-559.28674167,8.219e-05,2]
[356165124,1741980646391,-2368.94325833,8.219e-05,2]
[356165125,1741980646401,-500.0,8.219e-05,2]
[356165126,1741980646415,-3763.26,8.219e-05,2]
[356165127,1741980646427,-500.0,8.219e-05,2]
[356165128,1741980646437,-500.0,8.219e-05,2]
[356165129,1741980646449,-580.97,8.219e-05,2]
[356165130,1741980646459,-113.84551569,8.219e-05,2]
[356165131,1741980646480,-386.15448431,8.219e-05,2]
[356165132,1741980646490,-500.0,8.219e-05,2]
[356165133,1741980646500,-1465.92,8.219e-05,2]
[356165134,1741980646511,-500.0,8.219e-05,2]
[356165135,1741980646520,-85873.9072656,8.219e-05,2]
[356165149,1741981546446,-1701.999997,8.1e-05,2]
[356165150,1741981546470,-500.0,8.118e-05,2]
[356165151,1741981546491,-233.99477043,8.118e-05,2]
[356165152,1741981546515,-164.93971186,8.118e-05,2]
[356165153,1741981553815,24900.0,7.397e-05,2]
[356165229,1741981832611,-500.0,8.118e-05,2]
[356165230,1741981832621,-221.66745458,8.118e-05,2]
[356165231,1741981832630,-300.0,8.118e-05,2]
[356165232,1741981832639,-156246.92644699,8.119e-05,2]
[356165233,1741981832649,-500.0,8.193e-05,2]
[356165234,1741981832659,-500.0,8.193e-05,2]
[356165235,1741981832668,-500.80423028,8.193e-05,2]
[356165236,1741981832677,-500.0,8.193e-05,2]
[356165237,1741981832686,-500.0,8.193e-05,2]
[356165238,1741981832696,-505.57002045,8.193e-05,2]
[356165239,1741981832705,-500.0,8.193e-05,2]
[356165240,1741981832714,-500.0,8.193e-05,2]
[356165241,1741981832724,-500.0,8.193e-05,2]
[356165242,1741981832733,-500.0,8.193e-05,2]
[356165243,1741981832743,-500.0,8.193e-05,2]
[356165244,1741981832752,-500.0,8.193e-05,2]
[356165245,1741981832762,-500.0,8.193e-05,2]
[356165246,1741981832772,-218.36303007,8.193e-05,2]
[356165247,1741981832781,-500.0,8.219e-05,2]
[356165248,1741981832791,-500.0,8.219e-05,2]
[356165249,1741981832801,-533.05,8.219e-05,2]
[356165250,1741981832810,-545.06,8.219e-05,2]
[356165251,1741981832820,-500.0,8.219e-05,2]
[356165252,1741981832829,-500.0,8.219e-05,2]
[356165253,1741981832839,-500.0,8.219e-05,2]
[356165254,1741981832849,-500.0,8.219e-05,2]
[356165256,1741981832859,-500.0,8.219e-05,2]
[356165257,1741981832869,-500.0,8.219e-05,2]
[356165258,1741981832879,-531.11,8.219e-05,2]
[356165259,1741981832889,-500.0,8.219e-05,2]
[356165260,1741981832898,-769.86,8.219e-05,2]
[356165261,1741981832908,-500.0,8.219e-05,2]
[356165262,1741981832917,-500.0,8.219e-05,2]
[356165263,1741981832927,-925.27,8.219e-05,2]
[356165264,1741981832936,-500.0,8.219e-05,2]
[356165265,1741981832946,-500.0,8.219e-05,2]
[356165266,1741981832956,-500.0,8.219e-05,2]
[356165267,1741981832966,-500.0,8.219e-05,2]
[356165268,1741981832976,-518.41,8.219e-05,2]
[356165269,1741981832986,-500.0,8.219e-05,2]
[356165270,1741981832999,-341.17560173,8.219e-05,2]
[356165271,1741981833009,-584.8,8.219e-05,2]
[356165272,1741981833020,-500.0,8.219e-05,2]
[356165273,1741981833031,-500.0,8.219e-05,2]
[356165274,1741981833041,-500.0,8.219e-05,2]
[356165275,1741981833052,-500.0,8.219e-05,2]
[356165276,1741981833063,-500.0,8.219e-05,2]
[356165277,1741981833074,-500.0,8.219e-05,2]
[356165278,1741981833084,-288.44639379,8.219e-05,2]
[356165279,1741981833095,-500.0,8.219e-05,2]
[356165280,1741981833106,-500.0,8.219e-05,2]
[356165281,1741981833116,-500.0,8.219e-05,2]
[356165282,1741981833127,-681.38,8.219e-05,2]
[356165283,1741981833141,-500.0,8.219e-05,2]
[356165284,1741981833151,-500.0,8.219e-05,2]
[356165285,1741981833161,-577.06,8.219e-05,2]
[356165286,1741981833171,-500.0,8.219e-05,2]
[356165287,1741981833181,-558.79,8.219e-05,2]
[356165288,1741981833191,-500.0,8.219e-05,2]
[356165289,1741981833201,-500.0,8.219e-05,2]
[356165290,1741981833212,-500.0,8.219e-05,2]
[356165291,1741981833222,-500.0,8.219e-05,2]
[356165292,1741981833233,-1153.03,8.219e-05,2]
[356165293,1741981833243,-500.0,8.219e-05,2]
[356165294,1741981833254,-473.31901545,8.219e-05,2]
[356165295,1741981833264,-500.0,8.219e-05,2]
[356165296,1741981833275,-500.0,8.219e-05,2]
[356165297,1741981833286,-500.0,8.219e-05,2]
[356165298,1741981833298,-500.0,8.219e-05,2]
[356165299,1741981833309,-512.34,8.219e-05,2]
[356165300,1741981833320,-500.0,8.219e-05,2]
[356165301,1741981833330,-500.0,8.219e-05,2]
[356165302,1741981833340,-1037.01,8.219e-05,2]
[356165303,1741981833350,-104.00454743,8.219e-05,2]
[356165304,1741981833462,-395.99545257,8.219e-05,2]
[356165305,1741981833473,-500.0,8.219e-05,2]
[356165306,1741981833483,-1087.13,8.219e-05,2]
[356165307,1741981833494,-500.0,8.219e-05,2]
[356165308,1741981833507,-70.87174451,8.219e-05,2]
[356165359,1741981838324,-429.12825549,8.219e-05,2]
[356165361,1741981838335,-409.85174451,8.219e-05,2]
[356165455,1741981840744,-90.14825549,8.219e-05,2]
[356165457,1741981840755,-500.0,8.219e-05,2]
[356165459,1741981840767,-500.0,8.219e-05,2]
[356165461,1741981840778,-500.0,8.219e-05,2]
[356165463,1741981840788,-500.0,8.219e-05,2]
[356165465,1741981840799,-500.0,8.219e-05,2]
[356165467,1741981840810,-500.0,8.219e-05,2]
[356165469,1741981840821,-535.65,8.219e-05,2]
[356165471,1741981840832,-500.0,8.219e-05,2]
[356165472,1741981840843,-500.0,8.219e-05,2]
[356165473,1741981840853,-317.80668087,8.219e-05,2]
[356165474,1741981840863,-654.53,8.219e-05,2]
[356165475,1741981840874,-552.29,8.219e-05,2]
[356165476,1741981840884,-749.66,8.219e-05,2]
[356165477,1741981840894,-89.534058,8.219e-05,2]
[356165478,1741981840928,-258.22,8.219e-05,2]
[356165502,1741981843425,-262.665942,8.219e-05,2]
[356165503,1741981843434,-672.77,8.219e-05,2]
[356165504,1741981843443,-500.0,8.219e-05,2]
[356165505,1741981843452,-556.76,8.219e-05,2]
[356165506,1741981843462,-500.0,8.219e-05,2]
[356165507,1741981843471,-500.0,8.219e-05,2]
[356165508,1741981843480,-500.0,8.219e-05,2]
[356165509,1741981843489,-1039.07,8.219e-05,2]
[356165510,1741981843499,-415.28637687,8.219e-05,2]
[356165511,1741981843509,-500.0,8.219e-05,2]
[356165512,1741981843518,-500.0,8.219e-05,2]
[356165513,1741981843528,-500.0,8.219e-05,2]
[356165514,1741981843537,-500.0,8.219e-05,2]
[356165515,1741981843546,-500.0,8.219e-05,2]
[356165516,1741981843555,-500.0,8.219e-05,2]
[356165517,1741981843564,-510.8365529,8.219e-05,2]
[356165518,1741981843574,-6.56112823,8.219e-05,2]
[356165519,1741981843595,-493.43887177,8.219e-05,2]
[356165520,1741981843605,-186.89549086,8.219e-05,2]
[356165521,1741981843614,-500.0,8.219e-05,2]
[356165522,1741981843623,-500.0,8.219e-05,2]
[356165523,1741981843632,-507.63,8.219e-05,2]
[356165524,1741981843641,-500.0,8.219e-05,2]
[356165525,1741981843650,-500.0,8.219e-05,2]
[356165526,1741981843659,-737.49,8.219e-05,2]
[356165527,1741981843668,-500.0,8.219e-05,2]
[356165528,1741981843676,-500.0,8.219e-05,2]
[356165529,1741981843683,-500.0,8.219e-05,2]
[356165530,1741981843692,-500.0,8.219e-05,2]
[356165531,1741981843701,-500.0,8.219e-05,2]
[356165532,1741981843711,-500.0,8.219e-05,2]
[356165533,1741981843720,-619.35,8.219e-05,2]
[356165534,1741981843730,-508.27,8.219e-05,2]
[356165535,1741981843739,-500.0,8.219e-05,2]
[356165536,1741981843748,-502.3,8.219e-05,2]
[356165537,1741981843757,-501.42,8.219e-05,2]
[356165538,1741981843767,-621.66,8.219e-05,2]
[356165539,1741981843776,-803.98,8.219e-05,2]
[356165540,1741981843785,-500.0,8.219e-05,2]
[356165541,1741981843794,-1371.06,8.219e-05,2]
[356165542,1741981843803,-504.62,8.219e-05,2]
[356165543,1741981843813,-500.0,8.219e-05,2]
[356165544,1741981843823,-500.0,8.219e-05,2]
[356165545,1741981843832,-1268.27187221,8.219e-05,2]
[356165560,1741981846512,-933.26812779,8.219e-05,2]
[356165561,1741981846522,-597.36,8.219e-05,2]
[356165562,1741981846531,-500.0,8.219e-05,2]
[356165563,1741981846541,-500.0,8.219e-05,2]
[356165565,1741981846550,-500.0,8.219e-05,2]
[356165567,1741981846558,-538.74,8.219e-05,2]
[356165569,1741981846567,-500.0,8.219e-05,2]
[356165571,1741981846576,-500.0,8.219e-05,2]
[356165573,1741981846584,-500.0,8.219e-05,2]
[356165575,1741981846592,-991.93,8.219e-05,2]
[356165577,1741981846601,-500.0,8.219e-05,2]
[356165579,1741981846609,-500.0,8.219e-05,2]
[356165580,1741981846618,-500.0,8.219e-05,2]
[356165581,1741981846627,-3925.21,8.219e-05,2]
[356165582,1741981846636,-500.0,8.219e-05,2]
[356165583,1741981846645,-1642.0,8.219e-05,2]
[356165584,1741981846654,-735.17,8.219e-05,2]
[356165585,1741981846663,-500.0,8.219e-05,2]
[356165586,1741981846673,-500.0,8.219e-05,2]
[356165587,1741981846682,-500.0,8.219e-05,2]
[356165588,1741981846691,-854.2,8.219e-05,2]
[356165589,1741981846700,-580.11,8.219e-05,2]
[356165590,1741981846709,-679.22,8.219e-05,2]
[356165591,1741981846719,-910.25,8.219e-05,2]
[356165592,1741981846729,-1208.89,8.219e-05,2]
[356165593,1741981846739,-500.0,8.219e-05,2]
[356165594,1741981846748,-500.0,8.219e-05,2]
[356165595,1741981846757,-500.0,8.219e-05,2]
[356165596,1741981846767,-500.0,8.219e-05,2]
[356165597,1741981846775,-975.29,8.219e-05,2]
[356165598,1741981846786,-11212.27,8.219e-05,2]
[356165599,1741981846795,-500.0,8.219e-05,2]
[356165600,1741981846804,-1161.85,8.219e-05,2]
[356165601,1741981846814,-400.0,8.219e-05,2]
[356165602,1741981846824,-500.0,8.219e-05,2]
[356165603,1741981846833,-500.0,8.219e-05,2]
[356165604,1741981846843,-4677.51,8.219e-05,2]
[356165605,1741981846853,-625.79,8.219e-05,2]
[356165606,1741981846862,-628.93,8.219e-05,2]
[356165607,1741981846871,-1924.42,8.219e-05,2]
[356165608,1741981846880,-3900.34,8.219e-05,2]
[356165609,1741981846890,-500.0,8.219e-05,2]
[356165610,1741981846899,-500.0,8.219e-05,2]
[356165611,1741981846908,-500.0,8.219e-05,2]
[356165612,1741981846917,-500.0,8.219e-05,2]
[356165613,1741981846927,-500.0,8.219e-05,2]
[356165614,1741981846936,-293.78,8.219e-05,2]
[356165615,1741981846945,-573.3,8.219e-05,2]
[356165616,1741981846954,-1318.76,8.219e-05,2]
[356165617,1741981846964,-500.0,8.219e-05,2]
[356165618,1741981846975,-7902.75,8.219e-05,2]
[356165619,1741981846984,-500.0,8.219e-05,2]
[356165620,1741981846993,-208.21107255,8.219e-05,2]
[356165634,1741982749138,-443.3887611,8.019e-05,2]
[356165635,1741982750130,-1222.34968153,8.019e-05,2]
[356165636,1741982750151,-185.04,8.055e-05,2]
[356165637,1741982750173,-13.17563088,8.188e-05,2]
[356165638,1741982769902,-460.0944893,8.019e-05,2]
[356165639,1741982799770,-150.96274844,8.018e-05,2]
[356165640,1741982823008,-216.06,8.017e-05,2]
[356165647,1741982884271,-246.27627781,8.017e-05,2]
[356165673,1741983033007,-500.0,8.118e-05,2]
[356165674,1741983033017,-500.0,8.118e-05,2]
[356165675,1741983033027,-521.19995417,8.118e-05,2]
[356165676,1741983033037,-500.0,8.118e-05,2]
[356165677,1741983033047,-300.0,8.118e-05,2]
[356165678,1741983033057,-14013.12922555,8.119e-05,2]
[356165679,1741983033170,-6604.21687894,8.119e-05,2]
[356165680,1741983033191,-680.13206192,8.119e-05,2]
[356165681,1741983033214,-2098.24781738,8.119e-05,2]
[356165696,1741983038526,-2721.44903835,8.119e-05,2]
[356165697,1741983038537,-500.0,8.192e-05,2]
[356165698,1741983038547,-500.0,8.192e-05,2]
[356165699,1741983038557,-405.54138209,8.192e-05,2]
[356165700,1741983038568,-535.85872127,8.192e-05,2]
[356165701,1741983038577,-500.0,8.193e-05,2]
[356165702,1741983038588,-264.65067899,8.193e-05,2]
[356165704,1741983038600,-500.0,8.193e-05,2]
[356165706,1741983038611,-500.0,8.193e-05,2]
[356165708,1741983038621,-500.0,8.193e-05,2]
[356165709,1741983038630,-500.0,8.193e-05,2]
[356165710,1741983038640,-500.0,8.193e-05,2]
[356165711,1741983038649,-445.30098758,8.193e-05,2]
[356165712,1741983038659,-500.0,8.193e-05,2]
[356165713,1741983038668,-500.0,8.193e-05,2]
[356165714,1741983038677,-500.0,8.193e-05,2]
[356165715,1741983038686,-500.0,8.193e-05,2]
[356165716,1741983038696,-500.0,8.193e-05,2]
[356165717,1741983038706,-500.0,8.193e-05,2]
[356165718,1741983038715,-500.0,8.193e-05,2]
[356165719,1741983038725,-500.0,8.193e-05,2]
[356165720,1741983038734,-26166.68452642,8.217e-05,2]
[356165721,1741983038746,-3145.20547358,8.217e-05,2]
[356165722,1741983038755,-500.0,8.219e-05,2]
[356165723,1741983038764,-500.0,8.219e-05,2]
[356165724,1741983038774,-535.51,8.219e-05,2]